bitfinex-derivatives/quotes_ETHF0:USTF0_20251211
["timestamp","ask_amount","ask_price","bid_price","bid_amount"]
[1765466800735,3.11356127,3196.5,3196.2,0.00397531]
[1765466801327,3.2078,3196.4,3196.2,0.00397531]
[1765466802837,1.2085,3196.0,3195.7,3.2078]
[1765466803026,6.32136127,3195.8,3194.7,3.2078]
[1765466803228,1.2085,3196.0,3194.6,0.1565]
[1765466803229,3.11356127,3195.2,3194.6,0.1565]
[1765466803428,3.2078,3194.9,3194.6,0.1565]
[1765466803835,3.21092772,3194.9,3194.6,0.16050445]
[1765466804039,3.21092772,3194.9,3194.6,0.00400445]
[1765466805227,0.00312772,3194.9,3194.6,0.00400445]
[1765466805434,3.21092772,3194.9,3194.6,0.00400445]
[1765466806140,0.00312772,3194.9,3194.6,0.00400445]
[1765466806534,3.2078,3194.8,3194.7,0.15649]
[1765466806937,3.2078,3194.8,3194.6,0.00400445]
[1765466807730,1.8557,3194.4,3193.3,0.15656]
[1765466807939,3.2078,3194.0,3193.3,0.15656]
[1765466808134,2.75007259,3194.0,3193.9,0.15653]
[1765466808331,0.00469453,3194.2,3194.0,0.15652]
[1765466808531,0.00469453,3194.2,3194.1,0.15652]
[1765466808834,0.00469453,3194.2,3194.1,0.1597495]
[1765466809337,0.00469453,3194.2,3194.1,6.1597495]
[1765466809533,3.2078,3194.8,3194.1,6.0032295]
[1765466809738,0.00312772,3194.9,3194.1,3.2110295]
[1765466810537,3.2078,3194.5,3194.2,0.00469453]
[1765466810734,3.2078,3194.5,3194.2,0.16120453]
[1765466810735,1.7254,3194.4,3194.2,0.16120453]
[1765466810934,1.7254,3194.4,3194.1,0.0032295]
[1765466811947,3.2078,3194.5,3194.1,0.0032295]
[1765466812544,1.6624,3194.4,3194.1,0.0032295]
[1765466813336,1.6624,3194.4,3193.6,0.15654]
[1765466813534,3.2078,3193.7,3193.6,0.15654]
[1765466814241,3.2078,3193.7,3193.6,0.1601746]
[1765466815241,3.2078,3193.7,3193.6,0.1601846]
[1765466815544,3.2078,3194.1,3193.6,1.9903846]
[1765466815741,3.2078,3194.1,3193.6,0.0036346]
[1765466815941,3.2078,3194.1,3193.8,0.15653]
[1765466816340,8.20326127,3194.1,3193.6,0.0036346]
[1765466816543,3.2078,3193.7,3193.6,0.0036346]
[1765466817249,3.2078,3193.7,3192.8,3.2078]
[1765466817544,2.35319949,3193.3,3192.8,3.36438]
[1765466817747,2.35319949,3193.3,3192.9,0.15658]
[1765466818252,2.35319949,3193.3,3193.0,0.15657]
[1765466818450,2.35319949,3193.3,3193.1,0.15657]
[1765466818948,5.56099949,3193.3,3193.1,0.15657]
[1765466819543,3.2078,3193.3,3193.2,0.15657]
[1765466820053,3.2078,3193.8,3193.7,0.15654]
[1765466821143,3.2078,3193.8,3193.0,0.15657]
[1765466821348,3.2078,3193.2,3193.1,0.15657]
[1765466822948,3.2078,3193.6,3193.2,0.15656]
[1765466823157,3.2078,3193.6,3193.4,0.15655]
[1765466823351,3.2078,3194.0,3193.6,0.15654]
[1765466823951,3.2078,3194.0,3193.7,0.15654]
[1765466824250,3.2078,3194.0,3193.9,0.15653]
[1765466825051,3.2078,3194.0,3193.2,0.15656]
[1765466825259,3.2078,3193.3,3192.9,0.0035757]
[1765466826456,3.2078,3193.8,3193.2,0.15656]
[1765466826657,5.0291,3193.4,3192.9,0.0035757]
[1765466826952,3.2078,3193.0,3192.0,0.15662]
[1765466827159,0.00469453,3192.8,3192.1,0.15662]
[1765466827553,3.2078,3192.3,3192.1,0.15662]
[1765466828053,3.2078,3192.3,3192.2,0.15661]
[1765466828257,0.00357693,3192.3,3192.2,0.15661]
[1765466828453,3.21137693,3192.3,3192.2,0.15661]
[1765466828653,3.21137693,3192.3,3192.1,0.00319327]
[1765466828853,3.21137693,3192.3,3191.3,1.8302]
[1765466829059,3.2078,3191.9,3191.3,1.8302]
[1765466829449,0.00357693,3192.3,3191.8,0.15663]
[1765466829652,0.00469453,3192.8,3192.7,1.98679]
[1765466830653,0.00728783,3192.8,3192.7,1.98945958]
[1765466830860,3.2078,3193.1,3193.0,0.15658]
[1765466831261,3.396,3194.5,3193.9,0.15653]
[1765466831450,3.2078,3194.0,3193.9,0.15653]
[1765466831851,3.21178553,3194.0,3193.9,0.15653]
[1765466833262,3.21178553,3194.0,3193.6,0.00469453]
[1765466834468,0.77235567,3193.9,3193.6,0.00469453]
[1765466834756,0.77235567,3193.8,3193.5,0.15655]
[1765466835064,1.7554,3193.4,3193.2,0.15656]
[1765466835264,1.7554,3193.4,3193.3,0.15656]
[1765466835465,3.2078,3193.6,3193.5,0.15655]
[1765466835964,0.00398553,3194.0,3193.0,3.2078]
[1765466836158,0.00398553,3194.0,3193.9,0.15653]
[1765466838262,0.00398553,3194.0,3193.9,9.36433]
[1765466838463,0.77280263,3195.3,3194.2,0.15652]
[1765466838658,3.852,3195.5,3194.2,0.15652]
[1765466839064,0.77266061,3195.4,3194.2,0.15652]
[1765466839261,0.77265789,3195.4,3194.2,0.40575687]
[1765466839464,3.2078,3195.9,3195.8,0.15644]
[1765466839762,0.1881,3196.0,3195.9,0.15643]
[1765466839966,0.1881,3196.0,3195.9,6.15643]
[1765466840162,3.2078,3197.2,3195.9,6.0]
[1765466840464,0.00469453,3196.9,3196.5,3.2078]
[1765466840765,1.8002,3196.8,3196.7,0.15639]
[1765466841070,0.00469453,3196.9,3196.7,0.15639]
[1765466842059,0.00469453,3196.9,3196.5,3.2078]
[1765466842270,1.8002,3196.8,3196.5,3.2078]
[1765466843165,0.00469453,3196.9,3196.5,3.2078]
[1765466843465,0.00469453,3196.9,3196.7,0.15639]
[1765466844373,0.00469453,3196.9,3196.5,3.2078]
[1765466844374,0.00469453,3196.9,3196.8,0.15639]
[1765466844970,1.8002,3196.8,3196.5,3.2078]
[1765466845172,2.3474506,3196.6,3196.2,0.00469453]
[1765466845667,5.008,3196.8,3196.2,0.00469453]
[1765466845668,5.008,3196.8,3196.2,0.16110453]
[1765466846171,2.3474506,3196.5,3196.2,0.16110453]
[1765466846464,3.2078,3196.3,3196.2,0.00469453]
[1765466847371,0.00469453,3196.9,3196.2,3.21249453]
[1765466847570,4.53e-06,3196.9,3196.8,7.2384406]
[1765466847760,4.53e-06,3196.9,3196.8,4.89099]
[1765466847964,4.53e-06,3196.9,3196.8,3.36419]
[1765466848776,4.53e-06,3196.9,3196.8,0.15639]
[1765466849267,4.53e-06,3196.9,3196.4,3.2078]
[1765466849974,4.53e-06,3196.9,3196.4,0.15641]
[1765466850364,1.8002,3196.8,3196.2,0.00469453]
[1765466850558,1.8002,3196.8,3196.4,3.2078]
[1765466850761,4.53e-06,3196.9,3196.4,3.2078]
[1765466850973,4.53e-06,3196.9,3196.4,3.36421]
[1765466851170,4.53e-06,3196.9,3196.5,0.1564]
[1765466851767,4.53e-06,3196.9,3196.2,0.00469453]
[1765466851768,2.3474506,3196.6,3196.2,0.00469453]
[1765466851964,4.53e-06,3196.9,3196.2,0.00469453]
[1765466852168,4.53e-06,3196.9,3196.4,3.2078]
[1765466852769,4.53e-06,3196.9,3196.5,0.1564]
[1765466852970,4.53e-06,3196.9,3196.8,5.07309]
[1765466853674,4.53e-06,3196.9,3196.8,11.07309]
[1765466853869,4.53e-06,3196.9,3196.8,3.36419]
[1765466854473,4.53e-06,3196.9,3196.8,11.01419]
[1765466855574,4.53e-06,3196.9,3196.8,3.36419]
[1765466855775,4.53e-06,3196.9,3196.4,3.2078]
[1765466856673,4.53e-06,3196.9,3196.4,3.36421]
[1765466857275,4.53e-06,3196.9,3196.4,3.2078]
[1765466857581,4.53e-06,3196.9,3196.8,0.15639]
[1765466859383,1.80020453,3196.9,3196.8,0.15639]
[1765466859578,1.80020453,3196.9,3196.3,3.2078]
[1765466859878,4.53e-06,3196.9,3196.8,0.15639]
[1765466860181,1.80020453,3196.9,3196.8,0.15639]
[1765466860584,4.53e-06,3196.9,3196.8,0.15639]
[1765466861083,4.53e-06,3196.9,3196.8,3.36419]
[1765466865585,4.53e-06,3196.9,3196.8,9.36419]
[1765466865889,4.53e-06,3196.9,3196.8,3.36419]
[1765466866481,1.353e-05,3197.2,3197.1,0.15637]
[1765466866784,1.353e-05,3197.2,3197.1,6.03037]
[1765466867082,1.353e-05,3197.2,3197.1,15.63366334]
[1765466867281,1.353e-05,3197.2,3197.1,12.03037]
[1765466868090,1.353e-05,3197.2,3197.1,6.03037]
[1765466868289,1.353e-05,3197.2,3197.1,3.11287]
[1765466868487,2.82521353,3197.2,3196.8,3.2078]
[1765466868792,5.3813,3196.9,3196.8,3.2078]
[1765466868985,2.8252,3196.9,3196.8,3.2078]
[1765466869492,5.3813,3196.9,3196.8,3.2078]
[1765466869690,3.20781353,3197.2,3196.8,3.2078]
[1765466870190,3.20781353,3197.2,3196.8,3.36419]
[1765466871187,2.7539,3196.9,3196.8,3.36419]
[1765466871889,5.31,3196.9,3196.8,3.36419]
[1765466872097,5.31,3196.9,3196.8,0.15639]
[1765466876191,5.31,3196.3,3196.2,0.16111453]
[1765466876387,6.8575,3195.6,3195.5,0.15645]
[1765466876789,2.7539,3195.6,3195.5,0.15645]
[1765466876985,3.2078,3195.9,3195.5,3.36425]
[1765466877190,3.2078,3195.9,3195.8,2.5184]
[1765466877490,8.5178,3195.9,3195.8,0.00365769]
[1765466877894,5.9617,3195.9,3195.8,0.00365769]
[1765466878097,8.3399,3195.9,3195.8,0.00365769]
[1765466880393,0.00469453,3196.2,3195.8,5.04305769]
[1765466880598,0.00469453,3196.2,3195.8,5.19948769]
[1765466880792,1.56149453,3196.2,3195.8,2.75148769]
[1765466881294,0.00469453,3196.2,3195.8,2.75148769]
[1765466881592,0.00469453,3196.2,3196.1,5.19582]
[1765466882296,3.2078,3197.1,3196.7,0.15639]
[1765466882490,8.3399,3197.1,3196.7,0.15639]
[1765466882696,6.6889,3196.8,3196.7,0.15639]
[1765466882991,3.2078,3197.1,3196.7,0.15639]
[1765466883598,0.00470806,3197.2,3196.7,3.36419]
[1765466883801,0.00470806,3197.2,3196.8,0.15639]
[1765466884105,0.00470806,3197.2,3197.1,5.19577]
[1765466884401,2.59050806,3197.2,3197.1,0.15637]
[1765466884602,5.13680806,3197.2,3197.1,0.15637]
[1765466885103,0.00470806,3197.2,3197.1,8.40357]
[1765466885406,8.06e-06,3197.2,3197.1,17.12720066]
[1765466885703,8.06e-06,3197.2,3197.1,14.40357]
[1765466886404,0.00226736,3197.2,3197.1,3.36417]
[1765466886601,2.58806736,3197.2,3197.1,3.36417]
[1765466886905,0.00226736,3197.2,3197.1,5.95557]
[1765466887100,0.00226736,3197.2,3197.1,8.40357]
[1765466887903,0.00226736,3197.2,3197.1,5.95557]
[1765466888404,0.00226736,3197.2,3197.1,8.40357]
[1765466890007,3.2078,3198.4,3197.7,0.15634]
[1765466890306,3.2078,3198.4,3197.8,0.15634]
[1765466890600,3.2078,3199.0,3198.0,5.7992]
[1765466890804,5.1321,3198.8,3198.7,0.1563]
[1765466891005,5.1355442,3198.8,3198.7,0.15937661]
[1765466891198,5.1355442,3198.8,3198.4,0.00469453]
[1765466891398,2.5858,3198.0,3197.9,0.15633]
[1765466891596,3.2078,3198.5,3197.9,0.15633]
[1765466891998,2.5858,3197.7,3197.6,3.2078]
[1765466892302,1.5568,3198.3,3197.6,5.80240749]
[1765466892903,1.5568,3198.3,3198.1,0.15632]
[1765466893203,2.5858,3198.2,3198.1,0.15632]
[1765466893404,0.0034442,3198.8,3198.4,2.5914]
[1765466893605,0.0034442,3198.8,3198.6,0.1563]
[1765466894901,0.0034442,3198.8,3198.7,5.2694]
[1765466895107,0.00469453,3199.1,3199.0,0.15628]
[1765466895311,0.00469453,3199.1,3199.0,8.93818]
[1765466895997,3.2078,3200.2,3199.8,0.15624]
[1765466896206,2.4455,3199.9,3199.8,0.15624]
[1765466896407,3.2109812,3200.2,3199.4,3.2078]
[1765466896600,3.2109812,3200.2,3200.1,0.15623]
[1765466896802,5.6564812,3200.2,3200.1,0.15923826]
[1765466897007,0.0031812,3200.2,3200.1,2.31100826]
[1765466897403,5.0053812,3200.2,3200.1,0.00300826]
[1765466897801,0.0031812,3200.2,3200.1,2.31100826]
[1765466898007,0.0031812,3200.2,3200.1,4.98893826]
[1765466898304,0.0031812,3200.2,3200.1,2.46723826]
[1765466898503,5.0053812,3200.2,3200.1,0.00300826]
[1765466899808,11.0053812,3200.2,3200.1,0.00300826]
[1765466900716,4.7797,3199.9,3199.3,0.15626]
[1765466900914,7.9875,3199.9,3199.3,0.15626]
[1765466901111,4.7797,3199.4,3198.5,0.1563]
[1765466901313,1.3838,3199.7,3198.5,0.1563]
[1765466901314,1.3838,3199.0,3198.5,0.1563]
[1765466901614,1.3838,3199.0,3198.5,0.15863553]
[1765466902112,4.7797,3198.6,3198.5,0.15863553]
[1765466902409,0.00469453,3198.9,3198.5,0.00233553]
[1765466903111,2.49269453,3198.9,3198.5,0.00233553]
[1765466903614,0.00469453,3198.9,3198.8,2.5082]
[1765466903812,0.00469453,3198.9,3198.8,5.07849]
[1765466904009,0.00469453,3198.9,3198.8,8.28629]
[1765466904618,0.00469453,3198.9,3198.8,3.36409]
[1765466905010,4.78439453,3198.9,3198.8,0.15629]
[1765466905313,2.488,3198.6,3198.5,0.00233553]
[1765466905516,0.00469453,3198.9,3198.5,2.51053553]
[1765466906013,0.00469453,3198.9,3198.8,2.5082]
[1765466906212,0.00469453,3198.9,3198.8,5.07849]
[1765466907311,0.00469453,3198.9,3198.5,0.00233553]
[1765466907510,2.49269453,3198.9,3198.5,0.00233553]
[1765466908117,0.00469453,3198.9,3198.5,0.00233553]
[1765466908313,0.00469453,3198.9,3198.8,8.28629]
[1765466908512,4.78439453,3198.9,3198.8,0.15629]
[1765466908714,4.7797,3198.6,3198.5,0.00233553]
[1765466909517,6.1635,3198.6,3198.5,0.00233553]
[1765466913115,2.488,3198.6,3198.5,0.00233553]
[1765466913315,3.2078,3198.7,3198.5,2.51053553]
[1765466913515,6.1635,3198.6,3198.5,0.00233553]
[1765466914819,4.7797,3198.1,3197.7,0.15634]
[1765466915117,4.7797,3197.3,3197.1,0.15637]
[1765466915321,1.3838,3198.0,3197.1,0.15637]
[1765466915322,4.7797,3197.2,3197.1,0.15637]
[1765466915917,7.99101421,3197.2,3197.1,0.00347154]
[1765466916222,4.78321421,3197.2,3197.1,0.00347154]
[1765466916918,0.00351421,3197.2,3197.1,0.00347154]
[1765466917119,0.00351421,3197.2,3197.1,2.51167154]
[1765466917317,2.49151421,3197.2,3197.1,0.00347154]
[1765466917719,4.78321421,3197.2,3197.1,0.00347154]
[1765466917922,4.7797,3196.9,3196.8,0.00469453]
[1765466918822,4.7797,3196.9,3196.8,0.00781614]
[1765466919715,4.7797,3196.1,3196.0,3.2078]
[1765466919917,4.7797,3196.1,3195.6,3.2078]
[1765466920121,2.488,3196.1,3195.6,3.2078]
[1765466920315,1.3838,3196.8,3196.1,2.5082]
[1765466920514,3.2078,3197.0,3196.7,2.66459]
[1765466920717,3.2078,3197.0,3196.7,2.66853109]
[1765466920921,3.2078,3197.0,3196.8,0.15639]
[1765466921122,4.7797,3196.9,3196.8,0.15639]
[1765466921423,2.488,3196.9,3196.8,0.15639]
[1765466921612,6.1635,3196.2,3196.1,0.15642]
[1765466922819,6.1635,3196.2,3196.1,0.15957875]
[1765466923213,2.488,3196.2,3196.1,0.15957875]
[1765466923413,3.2078,3196.6,3196.1,2.66777875]
[1765466923617,3.2078,3196.6,3196.1,0.00315875]
[1765466923922,0.00820874,3197.2,3196.9,0.15638]
[1765466923923,7.9875,3197.0,3196.9,0.15638]
[1765466924129,1.3838,3196.8,3196.2,2.66462]
[1765466924423,1.3838,3196.8,3196.3,0.15641]
[1765466924821,2.488,3196.4,3196.3,0.15641]
[1765466925214,1.3838,3196.8,3196.4,0.15641]
[1765466925418,4.7797,3196.5,3196.4,0.15641]
[1765466927327,6.1635,3196.2,3196.1,0.00315875]
[1765466928123,11.71901884,3196.2,3196.1,0.00315875]
[1765466929117,4.3171,3195.2,3195.1,0.15647]
[1765466929724,4.3171,3195.2,3194.7,3.2078]
[1765466929725,0.00469453,3195.5,3195.4,4.50126]
[1765466929920,3.2078,3196.0,3195.9,4.50123]
[1765466930123,3.2078,3196.0,3195.9,4.50430022]
[1765466931326,7.5249,3196.0,3195.9,0.15950022]
[1765466931527,5.4226,3196.0,3195.9,0.15950022]
[1765466932025,3.2078,3196.0,3195.9,4.50430022]
[1765466932223,0.00469453,3196.3,3196.2,0.15642]
[1765466932423,0.00469453,3196.3,3196.2,4.50122]
[1765466932627,0.00469453,3196.3,3196.2,2.38232]
[1765466933124,4.3171,3196.0,3195.9,0.00307022]
[1765466933630,7.5249,3196.0,3195.9,0.15950022]
[1765466933822,4.3171,3195.7,3195.6,0.00469453]
[1765466934529,4.3171,3195.7,3195.1,0.15647]
[1765466934530,4.3171,3195.2,3195.1,0.15647]
[1765466934730,4.3171,3195.2,3195.1,0.15904042]
[1765466938136,4.3171,3195.2,3194.1,3.2078]
[1765466938321,4.3171,3194.8,3194.7,0.15649]
[1765466939026,4.3171,3194.2,3193.7,3.2078]
[1765466939229,4.3171,3194.1,3194.0,0.15652]
[1765466939626,5.6055,3193.8,3193.7,0.00244238]
[1765466940422,3.2078,3194.1,3193.7,2.22834238]
[1765466940728,4.3171,3194.1,3194.0,0.15653]
[1765466941033,0.00469453,3194.3,3194.0,2.38243]
[1765466941234,4.3171,3194.1,3194.0,0.15653]
[1765466942128,2.2148,3194.1,3194.0,2.38243]
[1765466942327,0.00469453,3194.3,3194.2,4.50132]
[1765466942527,2.21949453,3194.3,3194.2,0.15652]
[1765466942731,4.32179453,3194.3,3194.2,0.15652]
[1765466942928,0.00469453,3194.3,3194.2,2.38242]
[1765466943130,4.32179453,3194.3,3194.2,0.15652]
[1765466943926,2.21949453,3194.3,3194.2,0.15652]
[1765466944128,0.00469453,3194.3,3194.2,4.50132]
[1765466944335,0.00397099,3194.8,3194.7,4.50129]
[1765466944535,4.32107099,3194.8,3194.7,0.15649]
[1765466944930,2.21877099,3194.8,3194.7,0.15649]
[1765466945129,0.00397099,3194.8,3194.7,4.50129]
[1765466945336,0.00397099,3194.8,3194.7,2.38239]
[1765466945830,4.32107099,3194.8,3194.7,0.15649]
[1765466946038,5.6055,3194.4,3194.3,3.2078]
[1765466946238,0.00397099,3194.8,3194.7,4.3448]
[1765466946837,0.00397099,3194.8,3194.7,4.50129]
[1765466947225,0.00397099,3194.8,3194.3,3.2078]
[1765466947432,0.00397099,3194.8,3194.3,5.59021]
[1765466948034,2.2148,3194.5,3194.4,0.1565]
[1765466948636,4.3171,3194.5,3194.4,0.1565]
[1765466949032,3.21177099,3194.8,3193.9,3.21249453]
[1765466949229,4.32107099,3194.8,3194.7,0.15649]
[1765466949443,0.00397099,3194.8,3194.7,4.50129]
[1765466950034,2.21877099,3194.8,3194.7,0.15649]
[1765466950234,0.00397099,3194.8,3194.7,2.38239]
[1765466950436,0.00397099,3194.8,3194.7,4.50129]
[1765466950938,4.32107099,3194.8,3194.7,0.15649]
[1765466951541,4.32107099,3194.8,3194.1,3.2078]
[1765466951729,4.3171,3194.2,3194.1,3.2078]
[1765466952133,4.3171,3194.2,3194.1,3.36432]
[1765466952436,2.2148,3194.2,3194.1,3.36432]
[1765466952641,1.2884,3194.4,3194.2,0.15652]
[1765466952842,2.2148,3194.3,3194.2,0.15652]
[1765466953639,4.2806,3194.3,3194.2,0.15652]
[1765466955137,7.4884,3194.3,3194.2,0.15652]
[1765466955335,4.1891,3194.0,3193.9,0.00469453]
[1765466955539,6.53681884,3194.0,3193.9,0.00469453]
[1765466956048,3.2078,3194.3,3193.9,2.28612453]
[1765466956638,4.1891,3194.1,3194.0,0.15653]
[1765466957040,2.1233,3194.1,3194.0,0.15653]
[1765466957240,4.1891,3194.1,3194.0,0.15653]
[1765466958442,4.1891,3194.0,3193.9,0.00469453]
[1765466959740,2.34771884,3194.1,3192.9,5.41750947]
[1765466959741,1.9651,3193.0,3192.9,5.41750947]
[1765466959947,1.2391,3193.8,3192.9,5.41750947]
[1765466959948,3.2078,3193.5,3192.9,5.34858]
[1765466960248,3.2078,3193.5,3193.0,0.15657]
[1765466960853,1.9651,3193.1,3193.0,0.15852422]
[1765466961045,2.35241337,3193.6,3193.0,3.96035422]
[1765466961245,0.00469453,3193.6,3193.1,2.14077]
[1765466961446,5.2343,3193.2,3193.1,0.15657]
[1765466961851,3.9952,3193.1,3193.0,0.00195422]
[1765466962048,7.203,3193.1,3193.0,0.00195422]
[1765466962454,3.21249453,3193.6,3193.5,1.9842]
[1765466962651,3.9952,3193.1,3193.0,3.36633422]
[1765466962845,3.9952,3193.1,3193.0,0.15853422]
[1765466963356,1.2391,3193.2,3193.0,2.14273422]
[1765466963756,3.9952,3193.1,3193.0,0.15853422]
[1765466964152,3.9952,3193.1,3193.0,0.00195422]
[1765466964354,3.9952,3193.1,3192.6,3.2078]
[1765466964355,3.9952,3192.7,3192.6,3.2078]
[1765466964562,3.9952,3192.4,3192.3,0.15661]
[1765466965253,3.9952,3192.2,3192.1,3.2078]
[1765466965463,3.9952,3191.5,3191.3,5.41750947]
[1765466965656,1.9651,3191.3,3191.0,2.20970947]
[1765466965959,1.9651,3191.3,3191.1,0.15666]
[1765466966160,3.9952,3191.0,3190.9,3.2078]
[1765466966862,4.4469,3191.4,3190.9,5.192]
[1765466967051,0.00469453,3191.7,3191.1,0.15667]
[1765466967855,3.9952,3191.2,3191.1,0.15667]
[1765466968259,3.9952,3191.2,3190.5,3.2078]
[1765466968466,4.4469,3191.4,3190.5,3.2078]
[1765466968467,3.9952,3190.6,3190.5,3.3645]
[1765466968669,3.9952,3190.6,3190.5,3.2078]
[1765466969163,3.9952,3190.1,3190.0,3.2078]
[1765466969355,3.9952,3190.1,3189.8,0.15673]
[1765466969563,3.9952,3189.8,3189.7,0.00247715]
[1765466969855,3.99923781,3189.8,3189.7,0.00247715]
[1765466970064,7.20703781,3189.8,3188.6,3.2078]
[1765466970257,7.20703781,3189.8,3187.8,1.2227]
[1765466970258,3.2078,3188.9,3188.8,3.9584]
[1765466970563,3.21183781,3189.8,3189.2,4.11516]
[1765466970765,3.21183781,3189.8,3189.2,3.2078]
[1765466971163,3.21183781,3189.8,3189.4,0.15675]
[1765466971767,0.00403781,3189.8,3189.4,0.15675]
[1765466971955,3.9952,3189.5,3189.4,0.15675]
[1765466972160,0.00403781,3189.8,3189.4,2.14095]
[1765466972364,0.00403781,3189.8,3189.4,0.15675]
[1765466972667,1.9651,3189.5,3189.4,0.15675]
[1765466973059,3.9952,3189.5,3189.4,0.15675]
[1765466973267,3.21183781,3189.8,3189.5,0.15675]
[1765466973465,3.9952,3189.4,3188.8,3.2078]
[1765466973768,3.9952,3189.4,3187.5,4.55742831]
[1765466973769,7.203,3189.4,3188.5,1.1447]
[1765466973958,3.9952,3189.1,3189.0,0.15677]
[1765466974153,3.9952,3189.1,3188.8,3.2078]
[1765466974358,3.9952,3189.1,3188.3,3.36461]
[1765466974660,3.9952,3188.4,3188.3,0.15681]
[1765466974868,1.9651,3188.0,3187.5,3.2078]
[1765466975166,0.00470196,3188.1,3188.0,3.9584]
[1765466975755,0.00470196,3188.1,3188.0,1.9842]
[1765466975959,0.00470196,3188.1,3187.9,0.15682]
[1765466976762,0.00470196,3188.1,3188.0,3.9584]
[1765466977357,3.2078,3189.1,3187.8,1.1629]
[1765466977560,3.2078,3189.1,3188.7,0.15678]
[1765466977763,3.2078,3189.5,3189.0,1.9842]
[1765466977962,5.55551884,3189.5,3188.4,3.2078]
[1765466978363,0.00470196,3189.3,3188.6,0.00470196]
[1765466978669,0.00470196,3189.3,3188.8,3.36458]
[1765466979366,0.00470196,3189.3,3188.8,3.2078]
[1765466979566,0.00470196,3189.3,3189.2,7.1662]
[1765466979864,0.00470196,3189.3,3189.2,8.52526]
[1765466980067,0.00403781,3189.8,3189.7,4.11514]
[1765466980262,1.96913781,3189.8,3189.7,0.15674]
[1765466980465,0.00403781,3189.8,3188.8,3.2078]
[1765466980669,0.00403781,3189.8,3189.2,3.2078]
[1765466980868,0.00403781,3189.8,3189.7,1.9842]
[1765466981172,0.00873977,3189.8,3189.7,4.11514]
[1765466981469,1.97383977,3189.8,3189.7,0.15674]
[1765466982064,4.00393977,3189.8,3189.7,0.15674]
[1765466982572,1.97383977,3189.8,3189.7,0.15674]
[1765466982965,0.00873977,3189.8,3189.7,0.15674]
[1765466983366,1.97383977,3189.8,3189.7,0.15674]
[1765466983769,0.00873977,3189.8,3189.7,2.14094]
[1765466983969,0.00873977,3189.8,3189.7,4.11514]
[1765466984868,0.00873977,3189.8,3189.7,7.32294]
[1765466985962,0.00312545,3189.8,3189.7,7.32294]
[1765466986167,3.2078,3190.4,3190.3,4.11511]
[1765466987163,3.210382,3190.4,3190.3,4.1185657]
[1765466987567,0.002582,3190.4,3190.3,4.1185657]
[1765466988578,0.00470196,3190.7,3190.6,4.83479]
[1765466988770,0.00470196,3190.7,3190.6,8.04259]
[1765466988968,0.00470196,3190.7,3190.6,6.8336]
[1765466989170,0.00470196,3190.7,3190.6,1.88619]
[1765466989370,0.00470196,3190.7,3190.6,6.99029]
[1765466989566,4.4469,3192.0,3190.8,1.0523]
[1765466989771,4.4509202,3192.0,3191.1,3.2078]
[1765466990370,1.8559,3191.2,3191.1,3.2078]
[1765466990575,4.6524,3190.8,3190.4,0.1567]
[1765466992881,3.2078,3191.1,3190.7,1.88619]
[1765466993184,4.6524,3190.8,3190.7,0.15669]
[1765466993477,1.0595,3190.8,3190.3,0.00815766]
[1765466993682,3.5929,3190.4,3190.3,0.00815766]
[1765466994671,3.5929,3190.4,3190.2,0.15671]
[1765466994877,1.0595,3190.2,3189.5,0.15675]
[1765466995084,3.2078,3190.0,3189.5,0.15675]
[1765466995780,1.8559,3189.6,3189.5,0.15979161]
[1765466995986,4.65627687,3189.6,3189.5,0.15979161]
[1765466996478,0.00387687,3189.6,3189.5,1.88929161]
[1765466997083,1.85977687,3189.6,3189.5,0.15979161]
[1765466997979,0.00387687,3189.6,3189.5,1.88929161]
[1765466999488,0.00387687,3189.6,3189.5,3.78559161]
[1765466999793,4.65627687,3189.6,3189.5,0.15979161]
[1765466999980,0.00387687,3189.6,3189.5,1.88929161]
[1765467000285,4.65627687,3189.6,3189.5,0.00304161]
[1765467000479,0.00387687,3189.6,3189.5,1.73254161]
[1765467000679,4.65627687,3189.6,3189.5,0.15979161]
[1765467000876,5.06757687,3189.6,3189.5,1.88929161]
[1765467001081,7.86407687,3189.6,3189.5,0.15979161]
[1765467002095,7.86407687,3189.6,3189.4,0.00470196]
[1765467002282,7.86407687,3189.6,3188.4,3.2078]
[1765467002283,1.0595,3189.0,3188.4,3.2078]
[1765467002483,3.2078,3188.9,3188.8,3.78258]
[1765467002879,1.8559,3189.0,3188.9,0.15677]
[1765467003399,0.00387687,3189.6,3189.5,3.78255]
[1765467004491,4.65627687,3189.6,3189.5,0.15675]
[1765467004881,1.8559,3189.1,3189.0,1.88627]
[1765467005081,3.5929,3189.5,3189.4,0.15675]
[1765467005298,0.00387687,3189.6,3189.5,3.78255]
[1765467005591,0.00387687,3189.6,3189.4,3.2078]
[1765467005592,4.2673,3190.8,3189.8,3.6258]
[1765467005793,4.2673,3190.8,3190.3,0.15671]
[1765467005794,3.5929,3190.4,3190.3,0.15671]
[1765467006090,3.5929,3190.7,3190.6,0.15669]
[1765467006395,4.2673,3190.8,3190.4,0.1567]
[1765467006591,3.5929,3190.6,3190.5,0.1567]
[1765467007386,1.06195649,3190.8,3190.5,0.1567]
[1765467007387,0.00245649,3190.8,3190.7,3.78249]
[1765467007582,4.65485649,3190.8,3190.7,0.15669]
[1765467007990,0.00245649,3190.8,3190.7,1.88619]
[1765467008288,0.00245649,3190.8,3190.3,0.00470196]
[1765467008289,3.5929,3190.5,3190.3,0.00470196]
[1765467008593,6.8007,3190.4,3189.8,0.15673]
[1765467008792,6.8007,3190.4,3189.9,0.15673]
[1765467008995,1.8559,3190.0,3189.9,0.15673]
[1765467009292,3.2078,3190.4,3190.2,0.15671]
[1765467009596,3.5929,3190.3,3190.2,0.15671]
[1765467009895,3.5929,3190.1,3190.0,0.00470196]
[1765467010296,3.5929,3190.1,3189.1,3.2078]
[1765467010489,3.5929,3189.2,3189.1,3.2078]
[1765467010894,3.5929,3189.2,3189.1,3.36457]
[1765467011094,3.5929,3189.7,3189.6,0.15674]
[1765467011295,1.8559,3189.7,3189.6,0.15674]
[1765467011506,6.8007,3189.7,3189.6,0.15674]
[1765467012195,3.5929,3189.7,3189.6,0.15674]
[1765467012403,1.8559,3189.7,3189.6,0.15674]